bitfinex/quotes_ETHUSD_20251201
["timestamp","ask_amount","ask_price","bid_price","bid_amount"]
[1764604106123,1.22534841,2736.8,2735.3,0.405504]
[1764604106302,0.85622,2736.8,2735.2,1.61194227]
[1764604106630,1.10871815,2737.7,2736.8,7.30780472]
[1764604106829,0.1997,2737.7,2736.9,0.405504]
[1764604107027,0.73397636,2737.8,2736.9,0.405504]
[1764604107028,0.002,2738.1,2736.9,0.405504]
[1764604107207,0.002,2738.1,2737.1,0.405504]
[1764604107395,0.002,2738.1,2737.3,0.405504]
[1764604107833,0.002,2738.1,2737.4,0.40103563]
[1764604108126,0.002,2738.1,2737.3,1.15674138]
[1764604108329,0.002,2738.1,2737.0,0.405504]
[1764604108547,0.4951,2738.1,2737.0,0.405504]
[1764604108830,0.002,2738.1,2737.1,10.49887819]
[1764604109031,0.002,2738.1,2737.3,0.405504]
[1764604109439,0.002,2738.1,2737.4,0.4516]
[1764604109751,0.002,2738.1,2737.5,0.405504]
[1764604110144,0.002,2738.1,2737.5,10.89991382]
[1764604110332,0.002,2738.1,2737.5,11.13687819]
[1764604110531,0.002,2738.1,2737.7,0.405504]
[1764604111050,0.002,2738.1,2737.7,7.71090634]
[1764604111349,0.002,2738.1,2737.7,7.30527529]
[1764604111549,0.002,2738.1,2737.4,14.38447567]
[1764604111729,0.002,2738.1,2737.5,0.857104]
[1764604112073,0.002,2738.1,2737.5,0.405504]
[1764604112234,0.002,2738.1,2737.4,7.30620296]
[1764604112758,0.002,2738.1,2737.4,3.65310148]
[1764604112962,0.002,2738.1,2737.3,7.30646986]
[1764604113133,0.002,2738.1,2737.4,10.04727819]
[1764604113333,0.002,2738.1,2737.4,0.405504]
[1764604113541,1.1204,2738.0,2736.7,3.83553588]
[1764604113852,0.36312,2737.7,2736.5,3.65430294]
[1764604114021,0.4824,2737.9,2736.5,3.65430294]
[1764604114220,0.4824,2737.9,2736.5,7.67403617]
[1764604114420,0.4824,2737.9,2736.5,3.65430294]
[1764604114621,0.4824,2737.9,2735.9,9.64177419]
[1764604114622,0.36312,2737.5,2736.1,7.30967434]
[1764604114821,0.36312,2737.6,2736.1,3.65483717]
[1764604115044,0.36312,2737.6,2735.9,9.64177419]
[1764604115045,0.4824,2737.8,2735.9,3.65510435]
[1764604115252,0.4824,2737.8,2735.9,7.69386914]
[1764604115459,0.7377041,2737.7,2735.9,0.38366044]
[1764604115761,0.36312,2737.4,2735.9,0.38366044]
[1764604115961,0.4824,2737.6,2735.9,0.38366044]
[1764604115962,0.638,2737.3,2735.9,10.02543463]
[1764604116121,0.638,2737.3,2736.0,0.405504]
[1764604116325,0.638,2737.3,2736.2,0.405504]
[1764604116560,0.638,2737.6,2736.2,0.405504]
[1764604116731,0.4824,2737.3,2736.4,0.406504]
[1764604117051,0.4824,2737.8,2736.4,0.406504]
[1764604117578,0.638,2738.0,2736.4,1.58369811]
[1764604117860,1.1204,2738.0,2736.6,0.405504]
[1764604118066,0.4824,2737.9,2736.6,0.405504]
[1764604118426,0.4824,2737.9,2736.5,2.64817524]
[1764604118668,0.4824,2737.9,2736.5,10.96290882]
[1764604118824,0.4824,2737.9,2736.5,7.30860588]
[1764604119151,0.4824,2737.9,2736.5,10.96290882]
[1764604119351,0.4824,2737.9,2736.6,0.405504]
[1764604120248,0.4824,2737.9,2736.5,18.9095147]
[1764604120249,0.4824,2737.9,2736.5,15.25521176]
[1764604120467,0.84552,2737.9,2736.5,10.96290882]
[1764604120621,0.4824,2737.9,2736.4,0.001]
[1764604120824,0.4824,2737.8,2736.4,0.001]
[1764604121225,1.21561044,2737.8,2736.4,0.001]
[1764604121433,0.18536104,2737.7,2736.4,0.406504]
[1764604121653,0.4824,2737.7,2736.4,0.406504]
[1764604121856,0.4824,2737.7,2736.4,1.13209811]
[1764604122363,0.8315,2737.9,2736.9,0.405504]
[1764604122560,0.8315,2737.9,2736.9,1.042504]
[1764604122725,0.8315,2737.9,2737.0,10.96090608]
[1764604122923,0.638,2737.9,2737.1,0.405504]
[1764604123193,0.002,2738.1,2737.1,1.58269811]
[1764604123948,0.002,2738.1,2737.1,1.13109811]
[1764604124155,0.002,2738.1,2737.3,0.405504]
[1764604124359,0.002,2738.1,2737.2,0.405504]
[1764604124360,0.4844,2738.1,2737.2,0.405504]
[1764604124567,0.002,2738.1,2737.2,2.29270224]
[1764604124864,0.002,2738.1,2737.4,0.405504]
[1764604125275,0.4844,2738.1,2737.4,0.405504]
[1764604125568,0.002,2738.1,2737.4,0.405504]
[1764604125735,0.002,2738.1,2737.4,2.0960682]
[1764604126268,0.002,2738.1,2737.6,0.405504]
[1764604126627,0.002,2738.1,2737.7,0.4516]
[1764604126827,0.002,2738.1,2737.9,0.405504]
[1764604127259,0.002,2738.1,2737.6,10.95850377]
[1764604127463,0.002,2738.1,2738.0,0.405504]
[1764604127840,0.002,2738.1,2738.0,0.857104]
[1764604128362,0.002,2738.7,2738.3,0.1578]
[1764604128737,0.002,2738.7,2738.5,0.405504]
[1764604129663,0.002,2738.7,2738.4,7.3035349]
[1764604129875,0.4824,2738.6,2737.5,3.65296803]
[1764604130027,0.002,2738.7,2737.6,0.60691263]
[1764604130661,0.002,2738.7,2737.7,0.405504]
[1764604130864,0.4844,2738.7,2737.9,0.405504]
[1764604131544,0.002,2738.7,2737.9,0.405504]
[1764604131743,0.002,2738.7,2738.1,0.405504]
[1764604131943,0.002,2738.7,2737.9,0.405504]
[1764604131944,0.4824,2738.6,2737.8,7.3051355]
[1764604132162,0.4824,2738.6,2737.1,14.61400752]
[1764604132672,0.4824,2738.6,2737.1,18.9045094]
[1764604133035,0.4824,2738.6,2737.1,15.25100752]
[1764604133280,0.4824,2738.6,2737.2,1.54088075]
[1764604133567,0.4824,2738.6,2737.1,14.61400752]
[1764604133732,1.20799411,2738.6,2737.1,10.96050564]
[1764604133933,0.36312,2738.5,2737.1,7.30700376]
[1764604134135,0.4824,2738.4,2737.1,14.77180752]
[1764604134486,0.4824,2738.4,2737.2,0.1578]
[1764604134664,0.4824,2738.4,2737.3,0.405504]
[1764604134866,0.4824,2738.4,2737.5,0.405504]
[1764604135051,0.639,2738.7,2737.5,1.041504]
[1764604135256,0.002,2738.6,2737.5,2.21869811]
[1764604135456,0.002,2738.6,2737.7,0.405504]
[1764604135815,0.002,2738.6,2737.6,2.68442055]
[1764604136077,0.4844,2738.6,2737.7,0.405504]
[1764604136662,0.1935,2737.8,2737.2,7.3067368]
[1764604136854,0.1935,2737.8,2737.1,0.001]
[1764604137049,0.4824,2737.7,2737.1,0.001]
[1764604137780,0.1935,2737.8,2737.1,0.001]
[1764604137969,1.1184,2738.1,2737.1,0.1588]
[1764604138476,0.636,2738.1,2737.2,0.405504]
[1764604138676,0.4844,2738.6,2737.2,0.405504]
[1764604138845,0.4844,2738.6,2737.6,0.405504]
[1764604139042,0.4844,2738.6,2737.5,18.26484015]
[1764604139043,0.4844,2738.6,2737.8,0.405504]
[1764604139250,0.002,2738.6,2737.8,0.405504]
[1764604139572,0.002,2738.6,2737.7,1.86703442]
[1764604139573,0.4824,2738.5,2737.7,1.86703442]
[1764604139754,0.4824,2738.5,2737.6,0.405504]
[1764604140263,0.4574,2738.5,2737.6,1.041504]
[1764604140582,0.002,2738.6,2737.6,1.13109811]
[1764604140748,0.002,2738.6,2737.2,7.3067368]
[1764604140749,0.4574,2738.5,2737.2,7.3067368]
[1764604140951,0.002,2738.6,2737.7,1.13109811]
[1764604141149,0.002,2738.7,2738.5,0.1586]
[1764604141150,1e-08,2738.7,2738.5,0.1586]
[1764604141382,0.002,2738.9,2738.7,0.405504]
[1764604141695,0.002,2739.7,2738.7,0.405504]
[1764604141853,0.002,2739.7,2739.4,10.04727819]
[1764604142052,0.002,2739.7,2739.6,0.405504]
[1764604142280,0.002,2739.7,2739.1,9.64177419]
[1764604142281,0.002,2739.7,2738.7,0.4597]
[1764604142452,0.002,2739.7,2738.6,0.405504]
[1764604142659,0.002,2739.7,2738.6,0.865204]
[1764604142855,0.4574,2739.6,2738.9,3.6511008]
[1764604143097,0.4574,2739.6,2738.3,7.30380162]
[1764604143254,0.4574,2739.6,2737.4,10.95930444]
[1764604143455,0.72559411,2739.5,2737.5,2.74207786]
[1764604143656,0.36312,2739.4,2737.6,0.72559411]
[1764604143853,0.636,2739.3,2737.5,2.10607786]
[1764604144052,1.21923196,2739.2,2737.4,7.30620296]
[1764604144267,1.21923196,2739.2,2737.1,3.81224406]
[1764604144268,0.1826,2737.5,2737.2,3.65334433]
[1764604144491,0.1826,2737.5,2737.2,7.30671273]
[1764604144866,0.64,2737.5,2737.1,0.001]
[1764604145188,0.1826,2737.5,2737.1,0.001]
[1764604145369,0.4574,2737.4,2737.1,0.001]
[1764604146356,0.4574,2737.4,2736.9,0.001]
[1764604146357,0.36312,2737.2,2736.9,0.001]
[1764604146607,0.73960928,2737.3,2736.9,0.001]
[1764604146759,0.4574,2737.3,2736.9,0.001]
[1764604146965,0.1826,2737.0,2736.9,0.001]
[1764604147694,0.64,2737.0,2736.9,0.001]
[1764604148302,0.1826,2737.5,2736.9,0.001]
[1764604148593,0.4574,2737.0,2736.9,0.001]
[1764604148898,0.4574,2737.4,2736.9,0.001]
[1764604150076,0.82052,2737.4,2736.9,0.001]
[1764604150277,0.4574,2737.4,2736.9,0.001]
[1764604150475,0.4574,2737.3,2736.9,0.001]
[1764604151585,0.1826,2737.5,2736.9,0.001]
[1764604151799,0.1826,2737.8,2736.9,0.001]
[1764604151967,0.636,2737.9,2737.0,0.405504]
[1764604152299,0.1826,2737.8,2736.9,0.1598]
[1764604152670,0.4574,2738.3,2736.9,0.1598]
[1764604152975,0.4574,2738.3,2737.0,10.96090608]
[1764604153179,0.4574,2738.3,2737.1,1.11207061]
[1764604153779,0.4574,2738.3,2737.0,7.30727072]
[1764604153980,0.82052,2738.3,2737.0,7.30727072]
[1764604154178,0.4574,2738.3,2737.0,7.30727072]
[1764604154388,0.4574,2738.2,2737.0,7.30727072]
[1764604154701,0.1826,2737.1,2736.9,7.30843983]
[1764604155197,0.64,2738.5,2737.0,0.4597]
[1764604155423,0.002,2737.3,2737.2,1.13109811]
[1764604155582,0.002,2737.3,2737.2,12.86468099]
[1764604155774,0.002,2737.6,2737.4,0.405504]
[1764604156108,0.002,2737.6,2737.5,0.405504]
[1764604156268,0.4574,2739.3,2737.6,0.405504]
[1764604156470,0.4574,2739.3,2737.8,0.405504]
[1764604156877,0.4574,2739.3,2738.0,0.405504]
[1764604157204,0.4574,2739.3,2738.2,0.405504]
[1764604157393,0.635,2739.5,2738.4,0.405504]
[1764604157971,0.635,2739.5,2738.4,0.635]
[1764604158399,0.635,2739.5,2738.3,1.93013418]
[1764604158400,0.4574,2739.4,2738.3,2.56513418]
[1764604158774,0.4574,2739.4,2738.4,0.405504]
[1764604158972,0.635,2739.5,2738.6,0.405504]
[1764604159180,0.635,2739.5,2738.7,1.50120404]
[1764604159593,0.635,2739.5,2738.7,0.08958404]
[1764604160198,0.002,2739.7,2738.8,2.22579811]
[1764604160387,0.002,2739.7,2739.4,0.1795]
[1764604160902,0.002,2739.7,2739.5,0.405504]
[1764604161115,0.0012,2739.7,2739.6,3.6501679]
[1764604161314,0.4574,2739.6,2739.1,7.30166842]
[1764604161532,0.0012,2739.7,2739.1,7.30166842]
[1764604161805,0.0012,2739.7,2739.3,0.405504]
[1764604162329,0.0012,2739.7,2739.4,0.635]
[1764604162611,0.0012,2739.7,2739.2,1.45576095]
[1764604162796,0.0012,2739.7,2739.2,2.09076095]
[1764604162973,0.0012,2739.7,2739.3,1.32227636]
[1764604163179,0.0012,2739.7,2739.4,7.9358688]
[1764604164212,0.0012,2739.7,2739.5,0.865204]
[1764604164522,0.0012,2739.7,2739.5,13.32438099]
[1764604164673,0.0012,2739.7,2739.6,0.865204]
[1764604164879,0.0012,2739.7,2739.6,4.75242101]
[1764604165101,0.0012,2739.7,2739.6,8.40258891]
[1764604165423,0.7082752,2742.3,2741.2,0.1576]
[1764604165708,0.4574,2741.5,2739.7,0.72559411]
[1764604165906,0.4574,2741.5,2739.7,2.01133396]
[1764604166282,0.4574,2741.5,2739.6,18.25080539]
[1764604166283,0.4574,2741.5,2739.6,10.95046959]
[1764604166484,0.82052,2741.5,2739.6,14.60063749]
[1764604166690,0.82052,2741.5,2739.6,15.23463749]
[1764604166887,0.82052,2741.4,2739.7,1.039504]
[1764604167219,0.4574,2741.4,2739.9,0.405504]
[1764604167377,0.4574,2741.3,2739.9,1.039504]
[1764604168011,0.4574,2741.3,2739.8,10.94970435]
[1764604168318,0.4574,2741.3,2739.9,1.45996058]
[1764604169374,0.4574,2741.3,2740.0,7.29927006]
[1764604169580,0.4574,2741.3,2740.0,10.94890509]
[1764604169993,0.1877,2740.1,2739.6,7.30022743]
[1764604170191,0.1877,2740.1,2738.9,0.634]
[1764604170628,0.4771,2740.6,2739.1,0.6472]
[1764604170924,0.1877,2741.2,2739.2,1.039504]
[1764604171222,0.1877,2741.2,2739.7,1.13109811]
[1764604171424,0.1877,2741.2,2739.9,1.13109811]
[1764604171727,0.1877,2741.2,2740.1,0.405504]
[1764604172023,1.1111,2741.5,2740.3,0.405504]
[1764604172320,1.1111,2741.5,2740.5,0.405504]
[1764604172613,0.4771,2741.4,2740.5,0.405504]
[1764604172915,0.634,2741.5,2740.5,0.405504]
[1764604173293,0.002,2741.3,2740.6,14.59534408]
[1764604173507,0.002,2741.3,2740.7,1.50008481]
[1764604174116,0.002,2741.3,2740.6,7.29767204]
[1764604174415,0.1877,2740.8,2740.0,0.634]
[1764604174715,0.1877,2740.8,2739.5,14.60120456]
[1764604174891,0.4771,2740.7,2739.6,1.50689046]
[1764604175092,0.1877,2741.1,2739.7,0.39830042]
[1764604175305,0.4771,2741.0,2739.9,14.59907292]
[1764604175719,0.1877,2741.1,2740.0,0.873204]
[1764604175886,0.6648,2741.1,2740.1,1.91220452]
[1764604176087,0.6648,2741.1,2740.2,0.405504]
[1764604176388,0.1877,2741.1,2740.4,0.405504]
[1764604176583,0.002,2741.3,2740.4,0.405504]
[1764604176892,0.002,2741.3,2740.4,0.873204]
[1764604177429,0.002,2741.3,2740.5,14.59587664]
[1764604177595,0.002,2741.3,2740.6,1.54690806]
[1764604178103,0.002,2741.3,2740.7,0.82997109]
[1764604178335,0.002,2741.3,2740.7,0.405504]
[1764604178714,0.1877,2740.8,2740.5,7.29793832]
[1764604178899,0.1877,2740.8,2740.5,3.64896916]
[1764604179101,0.1877,2740.8,2740.1,0.1566]
[1764604179301,0.4771,2741.1,2740.2,14.5974746]
[1764604179515,0.002,2741.3,2740.2,18.24684325]
[1764604179722,0.002,2741.3,2740.4,0.405504]
[1764604179921,0.002,2741.3,2740.3,0.4677]
[1764604180126,0.002,2741.3,2740.2,18.24684325]
[1764604180127,0.4791,2741.3,2740.5,0.405504]
[1764604180491,0.002,2741.3,2740.6,0.633]
[1764604180799,0.002,2741.3,2740.5,0.405504]
[1764604181005,0.002,2741.3,2740.5,1.57482177]
[1764604181498,0.002,2741.3,2740.7,0.405504]
[1764604181690,0.002,2741.3,2740.7,2.38741539]
[1764604183042,0.002,2741.3,2740.8,0.405504]
[1764604183336,0.002,2741.3,2740.7,1.98191139]
[1764604183529,0.4771,2741.2,2740.8,4.08295996]
[1764604183692,0.1877,2740.9,2740.8,3.64856976]
[1764604183894,0.1869,2740.9,2740.8,3.64856976]
[1764604184725,0.664,2740.9,2740.8,3.64856976]
[1764604184920,0.664,2740.9,2739.9,3.64976823]
[1764604185156,0.4771,2740.8,2740.0,0.36497682]
[1764604185345,0.4771,2740.8,2739.7,10.95010401]
[1764604185722,0.4771,2740.8,2739.7,7.30006934]
[1764604186051,0.4771,2740.8,2739.4,18.719872]
[1764604186052,1.40013095,2740.8,2739.4,18.719872]
[1764604186351,0.664,2740.9,2739.5,1.19329411]
[1764604186552,0.664,2740.9,2739.7,0.405504]
[1764604186716,0.664,2740.9,2739.5,0.3694427]
[1764604186717,0.4771,2740.8,2739.5,0.3694427]
[1764604186925,1.1101,2740.8,2739.4,10.9513032]
[1764604187254,2.44961665,2740.8,2739.5,1.09523032]
[1764604187546,2.14194974,2740.7,2739.6,10.9505037]
[1764604187852,2.86754385,2740.7,2739.4,7.3008688]
[1764604188034,0.92303095,2740.3,2739.4,10.9513032]
[1764604188217,0.1877,2739.5,2739.4,3.6504344]
[1764604188411,0.4771,2740.2,2739.4,7.3008688]
[1764604188619,0.92303095,2740.1,2739.3,0.001]
[1764604188843,0.4771,2740.6,2739.4,0.633]
[1764604189046,0.4771,2740.6,2739.6,0.405504]
[1764604189547,0.74221864,2740.8,2739.9,10.94930469]
[1764604189769,0.4771,2740.8,2739.9,14.59907292]
[1764604189918,0.4771,2740.7,2739.9,10.94930469]
[1764604190113,0.4771,2740.7,2739.9,12.47253317]
[1764604190417,0.4771,2740.7,2739.9,16.1223014]
[1764604191037,0.4771,2740.7,2740.0,0.405504]
[1764604191248,0.1869,2740.9,2740.0,0.405504]
[1764604191418,0.1877,2740.9,2740.1,0.5268427]
[1764604191615,0.1877,2740.9,2740.2,10.94810595]
[1764604191820,0.6648,2740.9,2740.2,10.94810595]
[1764604192118,0.6648,2740.9,2740.2,14.5974746]
[1764604192319,0.4771,2740.8,2740.2,10.94810595]
[1764604193149,0.4771,2740.8,2740.2,14.5974746]
[1764604193361,0.4771,2740.8,2740.2,16.13616206]
[1764604194151,0.1877,2740.9,2740.2,16.13616206]
[1764604194650,0.92991864,2741.2,2740.3,0.405504]
[1764604194822,0.4771,2741.1,2740.3,1.2716128]
[1764604195018,0.4771,2741.1,2740.4,1.74077749]
[1764604195253,0.4771,2741.1,2740.4,2.13972019]
[1764604196244,0.4771,2741.1,2740.5,3.64896916]
[1764604196447,1.40013095,2741.1,2740.5,7.29793832]
[1764604196623,0.1877,2740.6,2740.5,3.64896916]
[1764604196969,1.21931864,2741.0,2740.5,7.29793832]
[1764604197162,0.002,2741.3,2740.7,0.405504]
[1764604197324,0.4791,2741.3,2740.6,0.72979383]
[1764604197846,0.002,2741.3,2740.6,0.72979383]
[1764604198049,0.002,2741.3,2740.7,0.405504]
[1764604198367,0.002,2741.3,2740.9,1.13109811]
[1764604198531,0.002,2741.3,2740.9,2.81360828]
[1764604198730,0.002,2741.3,2741.2,0.563104]
[1764604199262,0.002,2741.3,2741.2,0.405504]
[1764604199463,0.002,2741.3,2740.9,3.26603147]
[1764604199659,0.002,2741.3,2741.0,1.037504]
[1764604199863,0.002,2741.3,2741.2,0.1576]
[1764604200057,0.002,2741.3,2741.1,0.1576]
[1764604200256,0.002,2741.3,2741.2,4.05354135]
[1764604200555,0.002,2741.3,2741.2,4.5312695]
[1764604200869,0.002,2741.6,2741.2,4.5312695]
[1764604200870,0.2508752,2742.3,2741.3,0.405504]
[1764604201070,0.2508752,2742.3,2741.5,0.405504]
[1764604201271,0.2508752,2742.3,2741.6,0.39010276]
[1764604201435,0.2508752,2742.3,2741.7,0.405504]
[1764604201639,1e-08,2742.3,2741.9,0.405504]
[1764604201981,0.92303095,2743.8,2742.2,1.13109811]
[1764604202144,0.4799,2743.7,2742.4,18.23220535]
[1764604202334,0.4799,2743.7,2742.4,10.93932321]
[1764604202535,0.4799,2743.7,2742.5,1.59509811]
[1764604202842,0.4799,2743.7,2742.7,0.405504]
[1764604203237,0.1877,2744.0,2742.9,0.405504]
[1764604203483,0.6676,2744.0,2742.9,0.9121376]
[1764604203766,0.4799,2744.6,2743.0,3.40674195]
[1764604203974,0.4799,2744.5,2743.1,0.405504]
[1764604204148,0.4799,2744.5,2742.7,0.19852009]
[1764604204475,1.64862506,2744.3,2742.1,7.29368002]
[1764604204645,0.92303095,2744.2,2742.2,1.096]
[1764604204836,1.40293095,2744.2,2742.3,1.037504]
[1764604205032,0.4799,2744.1,2742.5,0.405504]
[1764604205233,0.4799,2744.1,2742.5,0.78774445]
[1764604205456,0.4799,2744.1,2742.4,0.405504]
[1764604205769,0.631,2744.0,2742.5,0.405504]
[1764604205969,0.92303095,2744.6,2742.6,11.73358288]
[1764604206169,0.1887,2744.7,2742.6,11.73358288]
[1764604206170,0.4799,2744.5,2742.9,1.13109811]
[1764604206374,0.4799,2744.5,2743.1,0.405504]
[1764604206572,0.1887,2744.7,2743.2,1.13583456]
[1764604206874,0.4799,2744.6,2743.2,0.41024045]
[1764604207042,0.4791,2744.6,2743.3,0.464]
[1764604207250,0.1887,2744.7,2743.4,0.40739745]
[1764604207447,0.1887,2745.4,2743.8,11.73358288]
[1764604207659,0.1887,2745.4,2743.5,1.26023605]
[1764604207660,0.1887,2744.9,2743.5,0.47292527]
[1764604207857,0.1887,2744.9,2743.6,0.40739745]
[1764604208252,0.8197,2744.9,2743.6,11.34190177]
[1764604208444,0.8197,2744.9,2743.7,0.87842927]
[1764604208649,0.8197,2744.9,2743.7,1.29557492]
[1764604208858,0.8197,2744.9,2743.8,0.405504]
[1764604209071,0.8197,2744.9,2743.8,2.8637651]
[1764604209553,0.4799,2744.8,2743.8,0.39161215]
[1764604209770,0.002,2744.7,2743.7,0.405504]
[1764604209992,0.002,2744.7,2743.8,0.44937565]
[1764604210154,0.002,2744.7,2744.0,14.57725944]
[1764604210358,0.002,2744.7,2744.0,7.28862972]
[1764604210673,0.002,2744.7,2744.1,0.1582]
[1764604210845,0.002,2744.7,2744.2,0.89321299]
[1764604211046,0.002,2745.0,2744.4,0.405504]
[1764604211248,0.002,2745.0,2744.3,12.82858288]
[1764604211249,0.002,2745.0,2744.9,12.13908688]
[1764604211442,0.002,2745.0,2744.9,12.53519511]
[1764604211648,0.19044664,2746.5,2745.0,0.78783832]
[1764604211880,0.19044664,2746.5,2745.2,0.574104]
[1764604212083,0.92303095,2747.4,2745.3,4.27455]
[1764604212288,0.1849169,2747.5,2746.1,0.581604]
[1764604212584,0.4799,2747.6,2746.3,0.405504]
[1764604212782,0.24003971,2747.7,2746.3,0.405504]
[1764604213080,0.19034418,2747.6,2746.5,0.405504]
[1764604213249,0.24003971,2747.7,2746.5,0.405504]
[1764604213250,0.42057719,2747.7,2746.5,0.405504]
[1764604213449,0.42057719,2747.7,2746.1,0.1761]
[1764604213450,1.15461915,2747.7,2746.6,0.464]
[1764604213687,1.15461915,2747.7,2746.7,9.96346872]
[1764604213688,0.42057719,2747.7,2746.7,9.96346872]
[1764604213887,0.42057719,2747.7,2747.3,0.405504]
[1764604214117,1.21923196,2748.5,2747.3,0.405504]
[1764604214118,0.92303095,2748.8,2747.4,0.631]
[1764604214256,0.92303095,2749.2,2748.8,0.405504]
[1764604214447,0.24865227,2750.0,2749.0,0.405504]
[1764604214667,0.24865227,2750.0,2749.0,0.7488968]
[1764604214870,0.24865227,2750.0,2748.9,0.99634687]
[1764604215212,0.24865227,2750.0,2748.5,0.405504]
[1764604215366,0.24865227,2750.0,2749.1,0.405504]
[1764604215704,0.4799,2749.9,2748.4,0.19]
[1764604215875,0.24865227,2750.0,2748.5,0.405504]
[1764604216204,0.24865227,2750.0,2748.7,14.5523338]
[1764604216408,0.24865227,2750.0,2748.8,2.58633149]
[1764604216716,0.24865227,2750.0,2748.9,0.72559411]
[1764604216866,0.24865227,2750.0,2748.8,1.86073738]
[1764604216867,0.24865227,2750.0,2749.1,1.13109811]
[1764604217067,0.4799,2751.8,2749.4,0.405504]
[1764604217316,0.63,2751.7,2749.6,0.405504]
[1764604217532,0.4799,2751.8,2749.8,0.405504]
[1764604217800,0.4799,2751.8,2749.2,0.63]
[1764604217801,0.36312,2751.4,2748.9,0.405504]
[1764604218020,0.63,2751.3,2749.0,9.55986472]
[1764604218199,0.63,2751.2,2749.4,0.405504]
[1764604218381,0.4799,2751.5,2749.4,0.405504]
[1764604218569,0.4799,2751.5,2749.4,0.407404]
[1764604218570,0.63,2751.4,2749.4,0.407404]
[1764604218772,0.4799,2751.3,2749.4,0.407404]
[1764604219007,0.4799,2751.3,2749.3,0.72559411]
[1764604219178,0.4799,2751.3,2749.5,0.0019]
[1764604219384,0.4799,2751.7,2749.6,0.405504]
[1764604219578,0.4799,2751.7,2749.3,0.72559411]
[1764604219810,0.4799,2751.7,2749.7,0.0019]
[1764604220024,0.63,2751.6,2749.7,0.0019]
[1764604220185,0.4799,2751.7,2749.8,0.72559411]
[1764604220371,0.4799,2751.7,2749.9,0.405504]
[1764604220566,1.1099,2751.7,2750.0,0.0019]
[1764604220871,0.63,2751.6,2750.0,0.0019]
[1764604221071,0.4799,2751.6,2749.8,0.72559411]
[1764604221312,0.1887,2752.1,2750.3,0.72559411]
[1764604221615,0.1887,2753.0,2750.8,1.13109811]
[1764604221616,0.6686,2752.5,2750.8,1.13109811]
[1764604221819,0.6686,2752.5,2751.0,0.405504]
[1764604222030,0.6686,2753.0,2751.3,1.13109811]
[1764604222244,0.1887,2754.0,2752.2,1.13109811]
[1764604222401,0.1887,2754.4,2752.7,1.13109811]
[1764604222730,0.4799,2754.3,2752.9,0.405504]
[1764604222930,0.4799,2754.3,2752.1,0.0019]
[1764604223086,0.4799,2754.3,2752.1,1.13109811]
[1764604223286,0.4799,2754.3,2752.3,0.405504]
[1764604223287,0.63,2754.2,2752.3,0.405504]
[1764604223519,0.63,2754.2,2752.2,1.07080628]
[1764604223520,0.63,2754.2,2751.7,0.0019]
[1764604223730,0.1887,2754.4,2751.6,0.72559411]
[1764604223731,9.55796472,2754.0,2751.6,0.72749411]
[1764604223914,9.55796472,2754.0,2751.4,14.53805332]
[1764604223915,0.72559411,2753.9,2751.5,0.72559411]
[1764604224229,0.72559411,2753.9,2751.0,0.629]
[1764604224230,9.55796472,2753.5,2750.7,0.50666927]
[1764604224432,9.55796472,2752.5,2749.9,0.55769929]
[1764604224614,1.2976,2752.4,2750.0,0.0019]
[1764604224813,0.405504,2752.2,2749.6,0.55769929]
[1764604224999,10.22656472,2752.4,2749.7,1.51266989]
[1764604225000,0.4799,2752.1,2749.7,1.51266989]
[1764604225204,0.629,2752.0,2749.9,9.55796472]
[1764604225409,0.4799,2752.1,2749.9,9.55796472]
[1764604225611,0.1887,2752.4,2750.0,0.95598647]
[1764604225612,0.4799,2752.0,2750.0,0.95598647]
[1764604225815,0.629,2751.9,2749.9,9.55796472]
[1764604226056,0.4799,2752.0,2750.1,0.0019]
[1764604226250,0.4799,2751.9,2750.2,0.72559411]
[1764604226621,0.1887,2752.4,2750.5,0.72559411]
[1764604226838,0.1887,2752.4,2750.1,18.181157]
[1764604226839,1.1089,2752.3,2750.1,10.9086942]
[1764604227073,1.13109811,2752.1,2750.1,10.9086942]
[1764604227226,0.72559411,2751.7,2750.1,7.2724628]
[1764604227427,1.39147588,2751.6,2750.1,7.2724628]
[1764604227654,0.36312,2751.5,2750.2,0.72559411]
[1764604227854,0.84302,2751.5,2750.2,0.72559411]
[1764604228130,0.629,2751.4,2749.2,0.0019]
[1764604228360,1.1089,2751.4,2749.2,0.0019]
[1764604228656,1.1089,2751.4,2748.9,9.79952472]
[1764604228657,0.1805,2749.3,2748.9,3.63780428]
[1764604228868,0.1805,2750.0,2748.0,0.0019]
[1764604229048,1.0804,2749.9,2748.0,0.0019]
[1764604229254,0.4514,2749.9,2749.8,0.001]
[1764604229437,0.629,2749.9,2749.8,0.001]
[1764604229663,0.405504,2749.8,2747.1,9.55796472]
[1764604229837,0.405504,2749.8,2746.9,0.0019]
[1764604229838,0.405504,2749.5,2746.9,2.18625998]
[1764604230050,0.4676,2749.2,2746.9,2.18435998]
[1764604230362,0.4676,2749.2,2747.1,18.20101195]
[1764604230661,1.35459411,2749.1,2747.1,7.28040478]
[1764604230862,10.02556472,2749.2,2747.1,7.28040478]
[1764604231035,0.36312,2748.6,2747.1,7.28040478]
[1764604231237,0.19,2747.2,2746.2,7.28279076]
[1764604231437,0.629,2747.1,2746.2,3.64139538]
[1764604231638,0.629,2747.1,2745.3,10.92776745]
[1764604231639,0.19,2746.3,2745.3,10.92776745]
[1764604231840,0.19,2746.3,2745.3,7.2851783]
[1764604232044,0.4676,2746.2,2745.3,7.2851783]
[1764604232269,0.629,2746.1,2744.8,3.64317846]
[1764604232575,0.4676,2746.2,2744.7,7.28677086]
[1764604232770,0.19,2746.3,2744.7,7.28677086]